Cogmind - Beta 14 @@@ ROGUE MODE // 2024.08.23 @ 22:41:42 Player: FeralKatt Result: Destroyed by S-10 Pest with Light Assault Rifle Performance ------------- Evolutions (0) 0 Regions Visited (4) 800 Robots Destroyed (30) 150 Value Destroyed (493) 493 Prototype IDs (25) 500 Alien Tech Used (0) 0 Bonus (300) 300 TOTAL SCORE: 2243 Bonus ------- Aligned with FarCom 300 Cogmind --------- Core Integrity 0/250 Matter 299/300 Energy 250/250 System Corruption 0% Temperature Cool (92) Movement Walking (190) Ox1 Location -9/Mines Parts ------- > --- POWER (1) -------- Ion Engine > --- PROPULSION (2) --- Aluminum Leg > --- UTILITY (2) ------ Small Storage Unit Light Armor Plating > --- WEAPON (2) ------- Beam Cannon Light Assault Rifle > --- INVENTORY (8) ---- Light Ion Engine Small Matter Pod (50) Light Armor Plating Supersonic Drone Bay (1/1) Light Assault Rifle Datajack Mining Laser Peak State ------------ > --- POWER ------------ Ion Engine > --- PROPULSION ------- Aluminum Leg Aluminum Leg > --- UTILITY ---------- Small Storage Unit Supersonic Drone Bay > --- WEAPON ----------- Beam Cannon Light Assault Rifle > --- INVENTORY -------- Ion Engine Aluminum Leg Small Matter Pod Light Armor Plating Light Armor Plating Light Assault Rifle Datajack Mining Laser [Rating: 14] Favorites ----------- Power Ion Engine Engine Ion Engine Propulsion Aluminum Leg Leg Aluminum Leg Utility Small Storage Unit Device Heat Sink Storage Small Storage Unit Protection Light Armor Plating Weapon Light Assault Rifle Energy Gun Medium Laser Energy Cannon Beam Cannon Ballistic Gun Light Assault Rifle Special Weapon Mining Laser Build | -11 -10 -10 -10 -9 ------- Run | Yrd Mat Min Exi Min Slots Evolved . | . . . . . Power . | . . . . . Propulsion . | . . . . . Utility . | . . . . . Weapon . | . . . . . Parts Attached 30 | 6 17 1 . 6 Power 3 | 1 1 . . 1 Engine 3 | 1 1 . . 1 Core . | . . . . . Reactor . | . . . . . Propulsion 9 | 2 4 1 . 2 Treads . | . . . . . Leg 9 | 2 4 1 . 2 Wheel . | . . . . . Hover . | . . . . . Flight . | . . . . . Utility 7 | 1 4 . . 2 Device 2 | . 1 . . 1 Storage 1 | 1 . . . . Processor . | . . . . . Hackware . | . . . . . Protection 4 | . 3 . . 1 Artifact . | . . . . . Weapon 11 | 2 8 . . 1 Energy Gun 5 | 1 4 . . . Energy Cannon 1 | . 1 . . . Ballistic Gun 4 | 1 2 . . 1 Ballistic Cannon . | . . . . . Launcher . | . . . . . Special Weapon 1 | . 1 . . . Impact Weapon . | . . . . . Slashing Weapon . | . . . . . Piercing Weapon . | . . . . . Special Melee Weapon . | . . . . . Unidentified Prototypes . | . . . . . Parts Lost 4 | . 2 . . 2 Power 1 | . 1 . . . Propulsion 2 | . . . . 2 Utility . | . . . . . Weapon 1 | . 1 . . . Highest Loss Streak 2 | . 2 . . 1 To Critical Strikes 1 | . . . . 1 Average Slot Usage (%) 98 | . 96 100 100 98 Engine 13 | . 13 14 14 14 Leg 27 | . 28 28 28 26 Device 1 | . 1 . . 2 Storage 14 | . 14 14 14 14 Protection 11 | . 9 14 14 11 Energy Gun 8 | . 15 . . . Energy Cannon 7 | . 3 14 14 14 Ballistic Gun 11 | . 9 14 14 14 Peak Build Rating 14 | 6 7 7 8 14 Average Rating 7 | 3 6 7 7 8 On Entrance 5 | . 6 7 7 8 Naked Turns . | . . . . . Heaviest Build 17 | 11 17 17 17 17 Greatest Support 20 | 20 20 20 20 20 Greatest Overweight (x) 1 | 1 . . . 1 Average Overweight (x) . | . . . . . Largest Inventory Capacity 8 | 8 8 8 8 8 Average Capacity 7 | 6 8 8 8 8 Most Carried 8 | 5 8 8 8 8 Average Carried 6 | 2 5 7 7 7 Final Capacity 8 | 8 8 8 8 8 Final Carried 8 | 2 8 8 8 7 Class Distribution -------------------- 94% | Mutant 5% | Scavenger-Mutant Dominant Class ---------------- Mutant | -10/Materials Mutant | -10/Mines Mutant | -10/Exiles Mutant | -9/Mines Resources | -11 -10 -10 -10 -9 ----------- Run | Yrd Mat Min Exi Min Matter Collected 613 | 228 244 67 . 74 Remotely . | . . . . . Salvage Created 673 | . 448 51 . 174 Parts 47 | . 30 . . 17 Haulers Intercepted . | . . . . . Recyclers Shooed . | . . . . . Parts Field Recycled . | . . . . . Retrieved Matter . | . . . . . Parts Self-Destructed . | . . . . . Prevented . | . . . . . Kills | -11 -10 -10 -10 -9 ------- Run | Yrd Mat Min Exi Min Combat Hostiles Destroyed 29 | . 13 4 . 12 Guns 15 | . 13 . . 2 Cannons 14 | . . 4 . 10 Classes Destroyed 6 | . 5 1 . . Worker 1 | . 1 . . . Mechanic 1 | . 1 . . . Watcher 3 | . 3 . . . Swarmer 18 | . 6 . . 12 Grunt 7 | . 7 . . . Assembled 4 | . . 4 . . Best Kill Streak 4 | . 4 1 . 4 Combat Bots Only 4 | . 3 1 . 4 Max Kills in Single Turn 2 | . 2 1 . 2 Gunslinging . | . . . . . Exploded . | . . . . . Melee . | . . . . . Uniques/NPCs Destroyed . | . . . . . Combat | -11 -10 -10 -10 -9 -------- Run | Yrd Mat Min Exi Min Hostile Shots Fired 189 | . 79 26 . 84 Missed 51 | . 22 7 . 22 Damage Taken 1396 | . 663 230 . 503 Core 251 | . 101 36 . 114 Absorbed by Shields . | . . . . . Redirected to Shielding 3 | . 3 . . . Regen/Repaired (Parts) 131 | . 131 . . . Core Remaining (%) 100 | 100 . . . . Volleys Fired 110 | . 64 25 . 21 Largest 2 | . 2 2 . 2 Hottest 150 | . 150 80 . 80 Shots Fired 211 | . 120 49 . 42 Gun 149 | . 104 24 . 21 Cannon 59 | . 13 25 . 21 Launcher . | . . . . . Special 3 | . 3 . . . Kinetic 80 | . 35 24 . 21 Thermal 119 | . 73 25 . 21 Explosive . | . . . . . Electromagnetic 12 | . 12 . . . Robot Hit Streak 15 | . 15 5 . 7 Robot Miss Streak 8 | . 8 7 . 3 Penetration Max . | . . . . . Secondary Targets . | . . . . . Shots Hit Robots 112 | . 70 21 . 21 Core Hits 51 | . 30 7 . 14 Critical Kills . | . . . . . Critical Parts Destroyed . | . . . . . Critical Strikes 1 | . 1 . . . Burn 1 | . 1 . . . Melee Attacks . | . . . . . Impact . | . . . . . Slashing . | . . . . . Piercing . | . . . . . Sneak Attacks . | . . . . . Combat Hostiles . | . . . . . Follow-up Attacks . | . . . . . Damage Inflicted 1662 | . 1045 285 . 332 Guns 816 | . 674 75 . 67 Cannons 596 | . 121 210 . 265 Explosions 202 | . 202 . . . Melee . | . . . . . Ramming . | . . . . . Kinetic 297 | . 155 75 . 67 Thermal 1267 | . 792 210 . 265 Explosive . | . . . . . Electromagnetic 98 | . 98 . . . Impact . | . . . . . Slashing . | . . . . . Piercing . | . . . . . Highest Corruption . | . . . . . Average Corruption . | . . . . . Corruption Purged . | . . . . . Corruption Blocked . | . . . . . Overload Shots . | . . . . . Overflow Damage 15 | . 15 . . . Projectiles 15 | . 15 . . . Explosions . | . . . . . Melee . | . . . . . Knockbacks . | . . . . . Impact . | . . . . . Kinetic . | . . . . . Secondary . | . . . . . Self-Inflicted Damage 44 | . 44 . . . Shots 1 | . 1 . . . Rammed . | . . . . . Targets Rammed . | . . . . . Kicked . | . . . . . Crushed . | . . . . . Highest Temperature 348 | . 348 312 . 237 Average Temperature 96 | . 88 116 . 92 Received Heat Transfer 425 | . 225 200 . . Effects 1 | . . 1 . . Interference 1 | . . 1 . . Siege Activations . | . . . . . Robots Corrupted . | . . . . . Combat Hostiles . | . . . . . Parts Fried . | . . . . . Impact Corruptions . | . . . . . Robots Melted . | . . . . . Combat Hostiles . | . . . . . Parts Melted 4 | . 4 . . . Heat Transferred 2674 | . 1675 444 . 555 Parts Sabotaged . | . . . . . Parts Stolen . | . . . . . Parts Stripped . | . . . . . Power Chain Reactions 1 | . 1 . . . Alert | -11 -10 -10 -10 -9 ------- Run | Yrd Mat Min Exi Min Peak Influence 289 | . 289 84 . 280 Initial 69 | . . 69 . . Average 113 | . 128 60 . 186 Maximum Alert Level 1 | . 1 . . 1 Low Security (%) 76 | 100 68 100 . 57 Level 1 23 | . 31 . . 42 Level 2 . | . . . . . Level 3 . | . . . . . Level 4 . | . . . . . Level 5 . | . . . . . High Security . | . . . . . Max Security . | . . . . . Squads Dispatched 2 | . 2 . . . Investigation 1 | . 1 . . . Extermination . | . . . . . Reinforcement 1 | . 1 . . . Assault . | . . . . . Garrison . | . . . . . Intercept . | . . . . . Searches Triggered . | . . . . . Construction Impeded . | . . . . . Haulers Reinforced . | . . . . . Active Scanning Responses . | . . . . . Cargo Convoy Interrupts . | . . . . . Stealth | -11 -10 -10 -10 -9 --------- Run | Yrd Mat Min Exi Min Distress Signals 7 | . 6 1 . . Communications Jammed . | . . . . . Distress Signals . | . . . . . Times Spotted 50 | . 27 8 . 15 Peak Tracking Total 6 | . 6 2 . 4 Tactical Retreats 8 | . 4 3 . 1 Traps | -11 -10 -10 -10 -9 ------- Run | Yrd Mat Min Exi Min Traps Triggered 1 | . 1 . . . Indirectly . | . . . . . Trap Hack Attempts . | . . . . . Triggered . | . . . . . Disarmed 1 | . 1 . . . Reprogrammed . | . . . . . Reused . | . . . . . Traps Extracted . | . . . . . Installed . | . . . . . Triggered . | . . . . . Machines | -11 -10 -10 -10 -9 ---------- Run | Yrd Mat Min Exi Min Machines Disabled . | . . . . . Max in Single Turn . | . . . . . Machines Repaired . | . . . . . Machines Dismantled . | . . . . . Machines Sabotaged . | . . . . . Overloaded Fab Kills . | . . . . . Hacking | -11 -10 -10 -10 -9 --------- Run | Yrd Mat Min Exi Min Machines Accessed 6 | . 5 . 1 . Terminals 4 | . 4 . . . Fabricators . | . . . . . Repair Stations 1 | . 1 . . . Recycling Units . | . . . . . Scanalyzers . | . . . . . Garrison Access . | . . . . . Total Hacks 13 | . 12 . 1 . Successful 10 | . 9 . 1 . Failed 3 | . 3 . . . Catastrophic . | . . . . . Database Lockouts . | . . . . . Manual 1 | . . . 1 . Terminals 8 | . 8 . . . Fabricators . | . . . . . Repair Stations 4 | . 4 . . . Recycling Units . | . . . . . Scanalyzers . | . . . . . Garrison Access . | . . . . . Terminal Hacks 6 | . 5 . 1 . Prototype ID Bank 1 | . 1 . . . Branch Access Points 1 | . 1 . . . Locate Traps 2 | . 2 . . . Disarm Traps 1 | . 1 . . . Derelict Proto ID Bank 1 | . . . 1 . Fabricator Hacks . | . . . . . Repair Station Hacks 4 | . 4 . . . Scan Component 2 | . 2 . . . Repair 2 | . 2 . . . Recycling Unit Hacks . | . . . . . Scanalyzer . | . . . . . Garrison Access Hacks . | . . . . . Unauthorized Hacks . | . . . . . Terminals . | . . . . . Fabricators . | . . . . . Repair Stations . | . . . . . Recycling Units . | . . . . . Scanalyzers . | . . . . . Garrison Access . | . . . . . Data Cores Recovered . | . . . . . Used . | . . . . . Hacking Detections 4 | . 4 . . . Full Trace Events 1 | . 1 . . . Feedback Events . | . . . . . Feedback Blocked . | . . . . . Robot Schematics Acquired . | . . . . . Robots Built . | . . . . . Authchips . | . . . . . Time . | . . . . . Total Robot Build Rating . | . . . . . Part Schematics Acquired . | . . . . . Parts Built . | . . . . . Authchips . | . . . . . Time . | . . . . . Total Part Build Rating . | . . . . . Parts Repaired 2 | . 2 . . . Time 52 | . 52 . . . Parts Recycled . | . . . . . Recycled Matter . | . . . . . Retrieved Matter . | . . . . . Retrieved Components . | . . . . . Parts Scanalyzed . | . . . . . Part Schematics Acquired . | . . . . . Parts Damaged . | . . . . . Bothacking | -11 -10 -10 -10 -9 ------------ Run | Yrd Mat Min Exi Min Used RIF Installer . | . . . . . Robots Hacked . | . . . . . Non-combat . | . . . . . Combat . | . . . . . Robot Hacks Applied . | . . . . . Relay Couplers Released . | . . . . . Fabnet Peak Effective % . | . . . . . Robots Rewired . | . . . . . Allies Hacked . | . . . . . Hacks Repelled . | . . . . . Allies | -11 -10 -10 -10 -9 -------- Run | Yrd Mat Min Exi Min Total Allies . | . . . . . Largest Group . | . . . . . Highest-Rated Group . | . . . . . Highest-Rated Ally . | . . . . . Total Orders 1 | . . . . 1 EXPLORE 1 | . . . . 1 Ally Attacks . | . . . . . Total Damage . | . . . . . Kills . | . . . . . Allies Corrupted . | . . . . . Allies Melted . | . . . . . Intel | -11 -10 -10 -10 -9 ------- Run | Yrd Mat Min Exi Min Robot Analysis Total . | . . . . . Derelict Logs Recovered 1 | . . 1 . . Drone Launches 1 | . . . . 1 Drone Recoveries 1 | . . . . 1 Exploration | -11 -10 -10 -10 -9 ------------- Run | Yrd Mat Min Exi Min Turns Passed 2238 | 57 1216 473 302 190 Spaces Moved 1249 | 46 638 223 251 91 Core 24 | 24 . . . . Treads . | . . . . . Legs 1225 | 22 638 223 251 91 Wheels . | . . . . . Hover . | . . . . . Flight . | . . . . . Fastest Speed 50 | 50 120 120 120 120 Average Speed 119 | 88 120 120 120 124 Slowest Speed 190 | 120 120 120 120 190 Overloaded Moves . | . . . . . Propulsion Burnouts . | . . . . . Robots Hopped . | . . . . . Cave-ins Triggered . | . . . . . Exploration Rate (%) 49 | 3 79 42 61 61 Regions Visited 4 Branch Regions 3 Pre-discovered Areas 1 | . . 1 . . Known Exits Taken 1 | . 1 . . . Unknown Exits Taken 3 | 1 . 1 1 . Scrap Searched 1 | . . 1 . . Spaces Dug . | . . . . . Terrain Destroyed 2 | . 2 . . . Melee . | . . . . . Projectile . | . . . . . AOE 2 | . 2 . . . Terrain Rammed . | . . . . . Walls Destroyed . | . . . . . Machines Disabled . | . . . . . Actions | -11 -10 -10 -10 -9 --------- Run | Yrd Mat Min Exi Min Total 1794 | 61 967 384 252 130 Wait 360 | 3 219 132 . 6 Move 1245 | 45 637 222 250 91 Hop . | . . . . . Pick Up 33 | 7 20 2 1 3 Fast Attach 2 | 1 1 . . . Attach 10 | 5 3 . . 2 Detach . | . . . . . Swap 18 | . 13 1 . 4 Drop 16 | . 10 2 1 3 Fire 110 | . 64 25 . 21 Melee . | . . . . . Ram . | . . . . . Kick . | . . . . . Crush . | . . . . . Escape Stasis . | . . . . . Rewire . | . . . . . Trap . | . . . . . Miscellaneous . | . . . . . Route ------- -11/Scrapyard -10/Materials (discovered 3 exits: [*Mat] / *Min x2) -10/Mines (discovered 2 exits: [*Mat] / *Exi) -10/Exiles -9/Mines (discovered 1 exit: [*Mat]) History --------- Turn | Location | Event 7 | -11/Scrapyard | Discovered new exit (range 15) 58 | -11/Scrapyard | Entered Materials 70 | -10/Materials | Identified exit to Mines 311 | -10/Materials | Build established: Mutant 956 | -10/Materials | Repaired Aluminum Leg 1148 | -10/Materials | Repaired Lgt. Armor Plating 1258 | -10/Materials | Discovered new exit (range 8) 1274 | -10/Materials | Entered Mines 1275 | -10/Mines | Assembled infested the area 1278 | -10/Mines | Learned location of Mines (-9) 1409 | -10/Mines | Deemed a non-threat by the Exiles lab entrance 1409 | -10/Mines | Discovered new exit (range 5) 1608 | -10/Mines | Core integrity fell below 50% 1646 | -10/Mines | Discovered new exit (range 7) 1747 | -10/Mines | Entered Exiles 1775 | -10/Exiles | Met 8R-AWN 1797 | -10/Exiles | Met EX-HEX 1839 | -10/Exiles | Met EX-BIN 1861 | -10/Exiles | Aligned with FarCom system 1863 | -10/Exiles | Given EX-Vault access code 1893 | -10/Exiles | Opened EX-Vault 1900 | -10/Exiles | Found Supersonic Drone Bay 1927 | -10/Exiles | Warned to stay clear of 0b10 Research branches 1961 | -10/Exiles | Met EX-DEC 2005 | -10/Exiles | Discovered new exit (range 12) 2049 | -10/Exiles | Left Exiles lab with Supersonic Drone Bay 2049 | -10/Exiles | Entered Mines 2065 | -9/Mines | Core integrity fell below 20% 2070 | -9/Mines | Discovered new exit (range 53) 2239 | -9/Mines | Destroyed by S-10 Pest with Light Assault Rifle Last Messages --------------- 02083_ Acquired Lgt. Ion Engine. 02100_ S-10 Pest destroyed. 02114_ Critical hit (Destroy). 02114_ Aluminum Leg destroyed. 02114_ S-10 Pest destroyed. 02121_ Acquired 12 matter. 02123_ Acquired 17 matter. 02125_ Acquired 6 matter. 02128_ Dropped Lgt. Assault Rifle. 02129_ Acquired Lgt. Assault Rifle. 02159_ S-10 Pest destroyed. 02171_ Acquired 13 matter. 02174_ Dropped Lgt. Assault Rifle. 02174_ Acquired Lgt. Assault Rifle. 02180_ Acquired 11 matter. 02181_ R-06 Scavenger collects Flight Unit. 02198_ K-01 Serf collects debris. 02236_ Aluminum Leg destroyed. 02237_ S-10 Pest destroyed. 02239_ K-01 Serf collects debris. Map ----- +----------------------------------------------------+ | ??# ##????? #???????????? | | ??# ##??? ##???????????? | | ??## ### ##????????????? | | ???# #?????????????? | | ???## #?#####???????? | | ????## ##### #???????? | | ?????## ### ###????# #???????? | | ??????####??# #??????## #### #???????? | | ????????????# ######??###???# #?######? | | ????????????# #????????# ### ## | | ????????????# #????????# ## | | ????????????##### #?######## | | ????????????????# #?# ^ ##### | | ????????????????# ### # # ##???? | | ???########?????# # #^ ##????? | | ???# #?????# ^ # ^ ##????? | | ???# #?????####### ^## #????? | | ???# #??????????# #????? | | ???# #??????# #### #????? | | ???# %=#?????# ##??# ##????? | | ???# %* %#?????# #????# ##?????? | | ???# = #??????# #?????## ##?????? | | ???#### ###??????####???????## ####??? | | ??????# #???????????????????## ##?? | | ??????# ##########????????### #?? | | ??????#*% k=*=[@*#???????## #?? | | ??????### ######=######### #?? | | ????????#[#????#*s #?? | | ????????# #????#%s% #?? | | ?????#### ################## ##?? | | ?????# #???????????## #??? | | ?????# """ """ #????????????# #??? | | ?????# """ """ #????????????# #??? | | ?????# """ """ #????????????# ##??? | | ?????# #????????????## ##???? | | ?????# """ """ #?????????????######????? | | ?????# """ """ #???????????????????????? | | ?????# """ """ #???????????????????????? | | ?????# #???????????????????????? | | ?????###########???????????????????????? | | ???????????????????????????????????????? | | ???????????????????????????????????????? | | ???????????????????????????????????????? | | | | | | | | | | | | | | | +----------------------------------------------------+ Best States ------------- Heat Dissipation 35 Energy Generation 10 Energy Capacity 250 Matter Stores 300 Matter Capacity 300 Sight Range 16 Terrain Scan Density 10 Armor Coverage 150 Core Shielding 20 Evasion (%) 55 Item Schematics ----------------- None Robot Schematics ------------------ None Fabricated ------------ Nothing Alien Tech Used ----------------- None Achievements -------------- None Challenges ------------ None Game ------ Seed SuspensionAssemblyDevice Manual? 0 Play Time 00:28:42 Cumulative 20.2 hours Start 2024.08.22 @ 19:47:13 End 2024.08.23 @ 22:41:42 Sessions 5 Manual Loads 0 Difficulty Rogue Special Mode None Game No. 26 Rogue 12 Adventurer 14 Explorer 0 Win Type - Total 0 Types 0/0/0/0/0/0/0/0/0 Lore% 10 Gallery% 26 Achievement% 25 Wizard Run 0 Options --------- Layout 1 ASCII 0 Keyboard 0 Movement Numpad Keybinds 0 Fullscreen 1 Font 24/Smallcaps Map View 50x35 Zoom Use 0% Tactical HUD 1 Map Filters NONE Filters NONE Steam 1 RUN: 2e554eba-0f18-44c7-bbbb-9dc038fdf6ad